Workbook

Sheet Sākums
B1: PAR ŠO VEIDNI
B2: Izmantojiet šo veidni, lai izveidotu kanāla mārketinga budžetus.
B3: Ievadiet plānoto pārdošanas apjomu katram mēnesim un citu informāciju tabulās.
B4: Kopsummas tiek aprēķinātas automātiski, un sīkdiagrammas tiek atjauninātas.
B5: Piezīme.
B6: Papildu norādījumi ir sniegti kolonnā A darblapā KANĀLA MĀRKETINGA BUDŽETS. Šis teksts ir paslēpts ar nolūku. Lai tekstu noņemtu, atlasiet kolonnu A, pēc tam atlasiet DZĒST. Lai parādītu slēpto tekstu, atlasiet kolonnu A, pēc tam nomainiet fonta krāsu.
B7: Lai iegūtu papildinformāciju par tabulām, nospiediet taustiņu SHIFT un pēc tam F10 tabulā, atlasiet opciju TABULA un pēc tam atlasiet ALTERNATĪVAIS TEKSTS.

Sheet Kanāla mārketinga budžets
A1: Šajā darblapā izveidojiet kanāla mārketinga budžets. Šīs darblapas nosaukums ir šūnā pa labi. Šīs kolonnas šūnās ir noderīgi norādījumi. Bultiņa uz leju, lai sāktu darbu. Šīs darblapas nosaukums ir šūnā pa labi. | B1: KANĀLA MĀRKETINGA BUDŽETS
A2: Likme un mēnešu etiķetes ir šajā šūnā, no šūnas C2 līdz šūnai O2, un Kopsumma etiķete ir šūnā Q2. | C2: Likme | D2: 1. mēnesis | E2: 2. mēnesis | F2: 3. mēnesis | G2: 4. mēnesis | H2: 5. mēnesis | I2: 6. mēnesis | J2: 7. mēnesis | K2: 8. mēnesis | L2: 9. mēnesis | M2: 10. mēnesis | N2: 11. mēnesis | O2: 12. mēnesis | Q2: Kopsumma
A3: Plānotās pārdošanas kopsumma etiķete atrodas šūnā pa labi. Ievadiet plānoto pārdošanas apjomu katram mēnesim šūnās no D3 līdz O3. Kopsumma tiek automātiski aprēķināta šūnā Q3. | B3: PLĀNOTĀ PĀRDOŠANAS KOPSUMMA EUR(000) | D3: 750 | E3: 200 | F3: 500 | G3: 1,500 | H3: 1,200 | I3: 1,500 | J3: 1,500 | K3: 1,800 | L3: 2,000 | M3: 2,000 | N3: 2,000 | O3: 2,000 | Q3: =SUM(D3:O3) -> 16,950
A4: Ievadiet detalizētu informāciju personāls tabulā, sākot no šūnas pa labi. Personāla kopsumma katram mēnesim tiek aprēķināta automātiski tabulas beigās, un gada Kopsumma tiek aprēķināta šūnā Q9. Sīkdiagramma tiek atjaunināta šūnā S9. Nākamais norādījums ir šūnā A10. | B4: Personāla vienumi | C4: Likme | D4: 1. mēnesis | E4: 2. mēnesis | F4: 3. mēnesis | G4: 4. mēnesis | H4: 5. mēnesis | I4: 6. mēnesis | J4: 7. mēnesis | K4: 8. mēnesis | L4: 9. mēnesis | M4: 10. mēnesis | N4: 11. mēnesis | O4: 12. mēnesis
B5: PERSONĀLS (% NO PĀRDOŠANAS KOPSUMMAS) | D5: =D11+D33+D41+D48 -> 110% | E5: 110% | F5: 110% | G5: 110% | H5: 110% | I5: 110% | J5: 110% | K5: 110% | L5: 85% | M5: 85% | N5: 85% | O5: 85%
B6: Cilvēkresursi - cilvēku skaits | C6: 5 | D6: =+$C$6 -> 5 | E6: 5 | F6: 5 | G6: 5 | H6: 5 | I6: 5 | J6: 5 | K6: 5 | L6: 5 | M6: 5 | N6: 5 | O6: 5
B7: Cilvēkresursi - izmaksas | D7: =$C$6*D6 -> 25.00 | E7: 25.00 | F7: 25.00 | G7: 25.00 | H7: 25.00 | I7: 25.00 | J7: 25.00 | K7: 25.00 | L7: 25.00 | M7: 25.00 | N7: 25.00 | O7: 25.00 | Q7: =SUM('Kanāla mārketinga budžets'!$D7:$O7) -> 300.00
B8: Komisija | C8: 0.10% | D8: =D3*$C$8 -> 0.75 | E8: 0.20 | F8: 0.50 | G8: 1.50 | H8: 1.20 | I8: 1.50 | J8: 1.50 | K8: 1.80 | L8: 2.00 | M8: 2.00 | N8: 2.00 | O8: 2.00 | Q8: =SUM('Kanāla mārketinga budžets'!$D8:$O8) -> 16.95
B9: Personāla kopsumma EUR(000) | D9: =SUM(D7:D8) -> 25.75 | E9: =SUM(E7:E8) -> 25.20 | F9: 25.50 | G9: 26.50 | H9: 26.20 | I9: 26.50 | J9: 26.50 | K9: 26.80 | L9: 27.00 | M9: 27.00 | N9: 27.00 | O9: 27.00 | Q9: =SUM(Q7:Q8) -> 316.95
A10: Ievadiet detalizētu informāciju tiešais mārketinga tabulā, sākot no šūnas pa labi. Telemārketinga kopsumma katram mēnesim tiek aprēķināta automātiski tabulas beigās, un gada kopsumma tiek aprēķināta šūnā Q17. Sīkdiagramma tiek atjaunināta šūnā S17. Nākamais norādījums ir šūnā A18. | B10: Tiešā mārketinga vienumi | C10: Likme | D10: 1. mēnesis | E10: 2. mēnesis | F10: 3. mēnesis | G10: 4. mēnesis | H10: 5. mēnesis | I10: 6. mēnesis | J10: 7. mēnesis | K10: 8. mēnesis | L10: 9. mēnesis | M10: 10. mēnesis | N10: 11. mēnesis | O10: 12. mēnesis
B11: TIEŠAIS MĀRKETINGS (% NO PĀRDOŠANAS KOPSUMMAS) | D11: 100% | E11: 100% | F11: 75% | G11: 40% | H11: 33% | I11: 25% | J11: 20% | K11: 10% | L11: 5% | M11: 5% | N11: 5% | O11: 5%
B12: Telemārketings (% no tiešās pārdošanas) | D12: 100% | E12: 50% | F12: 50% | G12: 50% | H12: 50% | I12: 50% | J12: 50% | K12: 50% | L12: 50% | M12: 50% | N12: 50% | O12: 50%
B13: Cilvēkresursi - cilvēku skaits | C13: 3 | D13: =$C$13*D12 -> 3 | E13: 1.5 | F13: 1.5 | G13: 1.5 | H13: 1.5 | I13: 1.5 | J13: 1.5 | K13: 1.5 | L13: 1.5 | M13: 1.5 | N13: 1.5 | O13: 1.5 | Q13: =SUM('Kanāla mārketinga budžets'!$D13:$O13) -> 19.50
B14: Infrastruktūras atbalsts | D14: 25 | E14: 10 | F14: 25 | G14: 10 | H14: 25 | I14: 10 | J14: 25 | K14: 10 | L14: 25 | M14: 10 | N14: 25 | O14: 10 | Q14: =SUM('Kanāla mārketinga budžets'!$D14:$O14) -> 210.00
B15: Komisija | C15: 0.10% | D15: =$C$15*D3*D11*D12 -> 0.75 | E15: 0.10 | F15: 0.19 | G15: 0.30 | H15: 0.20 | I15: 0.19 | J15: 0.15 | K15: 0.09 | L15: 0.05 | M15: 0.05 | N15: 0.05 | O15: 0.05 | Q15: =SUM('Kanāla mārketinga budžets'!$D15:$O15) -> 2.16
B16: Apmācība | D16: 25 | E16: 10 | F16: 25 | G16: 10 | H16: 25 | I16: 10 | J16: 25 | K16: 10 | L16: 25 | M16: 10 | N16: 25 | O16: 10 | Q16: =SUM('Kanāla mārketinga budžets'!$D16:$O16) -> 210.00
B17: Telemārketinga kopsumma EUR(000) | D17: =SUM(D13:D16) -> 53.75 | E17: =SUM(E13:E16) -> 21.60 | F17: =SUM(F13:F16) -> 51.69 | G17: 21.80 | H17: 51.70 | I17: 21.69 | J17: 51.65 | K17: 21.59 | L17: 51.55 | M17: 21.55 | N17: 51.55 | O17: 21.55 | Q17: =SUM(Q13:Q16) -> 441.66
A18: Ievadiet detalizētu informāciju interneta mārketings tabulā, sākot no šūnas pa labi. Interneta mārketinga kopsumma katram mēnesim tiek aprēķināta automātiski tabulas beigās, un gada Kopsumma tiek aprēķināta šūnā Q24. Sīkdiagramma tiek atjaunināta šūnā S24. Nākamais norādījums ir šūnā A25. | B18: Interneta mārketinga vienumi | C18: Likme | D18: 1. mēnesis | E18: 2. mēnesis | F18: 3. mēnesis | G18: 4. mēnesis | H18: 5. mēnesis | I18: 6. mēnesis | J18: 7. mēnesis | K18: 8. mēnesis | L18: 9. mēnesis | M18: 10. mēnesis | N18: 11. mēnesis | O18: 12. mēnesis
B19: Interneta mārketings (% no tiešās pārdošanas) | D19: 25% | E19: 25% | F19: 25% | G19: 25% | H19: 25% | I19: 25% | J19: 25% | K19: 25% | L19: 25% | M19: 25% | N19: 25% | O19: 25%
B20: Cilvēkresursi - cilvēku skaits | C20: 1 | D20: =$C$20*D19 -> 0.25 | E20: 0.25 | F20: 0.25 | G20: 0.25 | H20: 0.25 | I20: 0.25 | J20: 0.25 | K20: 0.25 | L20: 0.25 | M20: 0.25 | N20: 0.25 | O20: 0.25 | Q20: =SUM('Kanāla mārketinga budžets'!$D20:$O20) -> 3.00
B21: Tīmekļa vietnes izstrāde (vienreizēja maksa) | D21: 500 | Q21: =SUM('Kanāla mārketinga budžets'!$D21:$O21) -> 500.00
B22: Viesošana | D22: 10 | E22: 10 | F22: 10 | G22: 10 | H22: 10 | I22: 10 | J22: 10 | K22: 10 | L22: 10 | M22: 10 | N22: 10 | O22: 10 | Q22: =SUM('Kanāla mārketinga budžets'!$D22:$O22) -> 120.00
B23: Atbalsts un uzturēšana | D23: 25 | N23: 25 | Q23: =SUM('Kanāla mārketinga budžets'!$D23:$O23) -> 50.00
B24: Interneta mārketinga kopsumma EUR(000) | D24: =SUM(D20:D23) -> 535.25 | E24: =SUM(E20:E23) -> 10.25 | F24: 10.25 | G24: 10.25 | H24: 10.25 | I24: 10.25 | J24: 10.25 | K24: 10.25 | L24: 10.25 | M24: 10.25 | N24: 35.25 | O24: 10.25 | Q24: =SUM(Q20:Q23) -> 673.00
A25: Ievadiet detalizētu informāciju tiešais pasta tabulā, sākot no šūnas pa labi. Tiešā pasta kopsumma katram mēnesim tiek aprēķināta automātiski tabulas beigās, un gada Kopsumma tiek aprēķināta šūnā Q30. Nākamais norādījums ir šūnā A31. | B25: Tiešā pasta vienumi | C25: Likme | D25: 1. mēnesis | E25: 2. mēnesis | F25: 3. mēnesis | G25: 4. mēnesis | H25: 5. mēnesis | I25: 6. mēnesis | J25: 7. mēnesis | K25: 8. mēnesis | L25: 9. mēnesis | M25: 10. mēnesis | N25: 11. mēnesis | O25: 12. mēnesis
B26: Tiešais pasts (% no tiešās pārdošanas)
B27: Cilvēkresursi - izmaksas | Q27: =SUM('Kanāla mārketinga budžets'!$D27:$O27) -> 0.00
B28: Materiāls | D28: 1000 | E28: 1000 | F28: 1000 | G28: 1000 | H28: 1000 | I28: 1000 | J28: 1000 | K28: 1000 | L28: 1000 | M28: 1000 | N28: 1000 | O28: 1000 | Q28: =SUM('Kanāla mārketinga budžets'!$D28:$O28) -> 12,000.00
B29: Pasta izdevumi | D29: 250 | E29: 250 | F29: 250 | G29: 250 | H29: 250 | I29: 250 | J29: 250 | K29: 250 | L29: 250 | M29: 250 | N29: 250 | O29: 250 | Q29: =SUM('Kanāla mārketinga budžets'!$D29:$O29) -> 3,000.00
B30: Tiešā pasta kopsumma EUR(000) | D30: =SUM(D27:D29) -> 1,250.00 | E30: =SUM(E27:E29) -> 1,250.00 | F30: 1,250.00 | G30: 1,250.00 | H30: 1,250.00 | I30: 1,250.00 | J30: 1,250.00 | K30: 1,250.00 | L30: 1,250.00 | M30: 1,250.00 | N30: 1,250.00 | O30: 1,250.00 | Q30: =SUM(Q27:Q29) -> 15,000.00
A31: Šajā rindā tiek automātiski aprēķināta tiešā mārketinga kopsumma, no šūnas D31 līdz O31, un gada kopsumma tiek aprēķināta šūnā Q31. Sīkdiagramma tiek atjaunināta šūnā S31. | B31: Tiešā mārketinga kopsumma EUR(000) | D31: =SUM(DirectMail[[#Totals],[1. mēnesis]],InternetaMārketings[[#Totals],[1. mēnesis]],TiešaisMārketings[[#Totals],[1. mēnesis]]) -> 1,839.00 | E31: =SUM(DirectMail[[#Totals],[2. mēnesis]],InternetaMārketings[[#Totals],[2. mēnesis]],TiešaisMārketings[[#Totals],[2. mēnesis]]) -> 1,281.85 | F31: =SUM(DirectMail[[#Totals],[3. mēnesis]],InternetaMārketings[[#Totals],[3. mēnesis]],TiešaisMārketings[[#Totals],[3. mēnesis]]) -> 1,311.94 | G31: =SUM(DirectMail[[#Totals],[4. mēnesis]],InternetaMārketings[[#Totals],[4. mēnesis]],TiešaisMārketings[[#Totals],[4. mēnesis]]) -> 1,282.05 | H31: =SUM(DirectMail[[#Totals],[5. mēnesis]],InternetaMārketings[[#Totals],[5. mēnesis]],TiešaisMārketings[[#Totals],[5. mēnesis]]) -> 1,311.95 | I31: =SUM(DirectMail[[#Totals],[6. mēnesis]],InternetaMārketings[[#Totals],[6. mēnesis]],TiešaisMārketings[[#Totals],[6. mēnesis]]) -> 1,281.94 | J31: =SUM(DirectMail[[#Totals],[7. mēnesis]],InternetaMārketings[[#Totals],[7. mēnesis]],TiešaisMārketings[[#Totals],[7. mēnesis]]) -> 1,311.90 | K31: =SUM(DirectMail[[#Totals],[8. mēnesis]],InternetaMārketings[[#Totals],[8. mēnesis]],TiešaisMārketings[[#Totals],[8. mēnesis]]) -> 1,281.84 | L31: =SUM(DirectMail[[#Totals],[9. mēnesis]],InternetaMārketings[[#Totals],[9. mēnesis]],TiešaisMārketings[[#Totals],[9. mēnesis]]) -> 1,311.80 | M31: =SUM(DirectMail[[#Totals],[10. mēnesis]],InternetaMārketings[[#Totals],[10. mēnesis]],TiešaisMārketings[[#Totals],[10. mēnesis]]) -> 1,281.80 | N31: =SUM(DirectMail[[#Totals],[11. mēnesis]],InternetaMārketings[[#Totals],[11. mēnesis]],TiešaisMārketings[[#Totals],[11. mēnesis]]) -> 1,336.80 | O31: =SUM(DirectMail[[#Totals],[12. mēnesis]],InternetaMārketings[[#Totals],[12. mēnesis]],TiešaisMārketings[[#Totals],[12. mēnesis]]) -> 1,281.80 | Q31: =SUM(Q30,Q24,Q17,Q9) -> 16,431.61
A32: Ievadiet detalizētu informāciju aģenti un brokeri tabulā, sākot no šūnas pa labi. Aģentu un brokeru kopsumma katram mēnesim tiek aprēķināta automātiski tabulas beigās, un gada Kopsumma tiek aprēķināta šūnā Q39. Sīkdiagramma tiek atjaunināta šūnā S39. Nākamais norādījums ir šūnā A40. | B32: Aģenta/brokera vienumi | C32: Likme | D32: 1. mēnesis | E32: 2. mēnesis | F32: 3. mēnesis | G32: 4. mēnesis | H32: 5. mēnesis | I32: 6. mēnesis | J32: 7. mēnesis | K32: 8. mēnesis | L32: 9. mēnesis | M32: 10. mēnesis | N32: 11. mēnesis | O32: 12. mēnesis
B33: AĢENTI/BROKERI (% NO PĀRDOŠANAS KOPSUMMAS) | D33: 10% | E33: 10% | F33: 10% | G33: 10% | H33: 10% | I33: 10% | J33: 10% | K33: 10% | L33: 10% | M33: 10% | N33: 10% | O33: 10%
B34: Komunikācija | D34: 50 | E34: 50 | F34: 50 | G34: 50 | H34: 50 | I34: 50 | J34: 50 | K34: 50 | L34: 50 | M34: 50 | N34: 50 | O34: 50 | Q34: =SUM('Kanāla mārketinga budžets'!$D34:$O34) -> 600.00
B35: Apmācība | D35: 250.00 | E35: 250.00 | F35: 250.00 | G35: 250.00 | H35: 250.00 | I35: 250.00 | J35: 250.00 | K35: 250.00 | L35: 250.00 | M35: 250.00 | N35: 250.00 | O35: 250.00 | Q35: =SUM('Kanāla mārketinga budžets'!$D35:$O35) -> 3,000.00
B36: Reklāmas | D36: 600.00 | E36: 600.00 | F36: 600.00 | G36: 600.00 | H36: 600.00 | I36: 600.00 | J36: 600.00 | K36: 600.00 | L36: 600.00 | M36: 600.00 | N36: 600.00 | O36: 600.00 | Q36: =SUM('Kanāla mārketinga budžets'!$D36:$O36) -> 7,200.00
B37: Atlaides | C37: 10.00% | D37: =D3*D33*$C$37 -> 7.50 | E37: 2.00 | F37: 5.00 | G37: 15.00 | H37: 12.00 | I37: 15.00 | J37: 15.00 | K37: 18.00 | L37: 20.00 | M37: 20.00 | N37: 20.00 | O37: 20.00 | Q37: =SUM('Kanāla mārketinga budžets'!$D37:$O37) -> 169.50
B38: Komisija (% no aģentu pārdošanas apjoma) | C38: 10.00% | D38: =D3*D33*$C$38 -> 7.50 | E38: 2.00 | F38: 5.00 | G38: 15.00 | H38: 12.00 | I38: 15.00 | J38: 15.00 | K38: 18.00 | L38: 20.00 | M38: 20.00 | N38: 20.00 | O38: 20.00 | Q38: =SUM('Kanāla mārketinga budžets'!$D38:$O38) -> 169.50
B39: Aģentu/brokeru kopsumma EUR(000) | D39: =SUM(D34:D38) -> 915.00 | E39: =SUM(E34:E38) -> 904.00 | F39: 910.00 | G39: 930.00 | H39: 924.00 | I39: 930.00 | J39: 930.00 | K39: 936.00 | L39: 940.00 | M39: 940.00 | N39: 940.00 | O39: 940.00 | Q39: =SUM(Q34:Q38) -> 11,139.00
A40: Ievadiet detalizētu informāciju izplatītāji tabulā, sākot no šūnas pa labi. Izplatītāju kopsumma katram mēnesim tiek aprēķināta automātiski tabulas beigās, un gada Kopsumma tiek aprēķināta šūnā Q46. Sīkdiagramma tiek atjaunināta šūnā S46. Nākamais norādījums ir šūnā A47. | B40: Izplatītāju vienumi | C40: Likme | D40: 1. mēnesis | E40: 2. mēnesis | F40: 3. mēnesis | G40: 4. mēnesis | H40: 5. mēnesis | I40: 6. mēnesis | J40: 7. mēnesis | K40: 8. mēnesis | L40: 9. mēnesis | M40: 10. mēnesis | N40: 11. mēnesis | O40: 12. mēnesis
B41: IZPLATĪTĀJI (% NO PĀRDOŠANAS KOPSUMMAS) | D41: 0% | E41: 0% | F41: 0% | G41: 0% | H41: 0% | I41: 15% | J41: 20% | K41: 40% | L41: 40% | M41: 40% | N41: 40% | O41: 40%
B42: Komunikācija | D42: 50 | E42: 50 | F42: 50 | G42: 50 | H42: 50 | I42: 50 | J42: 50 | K42: 50 | L42: 50 | M42: 50 | N42: 50 | O42: 50 | Q42: =SUM('Kanāla mārketinga budžets'!$D42:$O42) -> 600.00
B43: Apmācība | D43: 250.00 | E43: 250.00 | F43: 250.00 | G43: 250.00 | H43: 250.00 | I43: 250.00 | J43: 250.00 | K43: 250.00 | L43: 250.00 | M43: 250.00 | N43: 250.00 | O43: 250.00 | Q43: =SUM(Izplatītāji[[#This Row],[1. mēnesis]:[12. mēnesis]]) -> 3,000.00
B44: Reklāmas | D44: 600.00 | E44: 600.00 | F44: 600.00 | G44: 600.00 | H44: 600.00 | I44: 600.00 | J44: 600.00 | K44: 600.00 | L44: 600.00 | M44: 600.00 | N44: 600.00 | O44: 600.00 | Q44: =SUM(Izplatītāji[[#This Row],[1. mēnesis]:[12. mēnesis]]) -> 7,200.00
B45: Komisija/atlaides (% no izplatītāju pārdošanas apjoma) | C45: 15.00% | D45: =D3*D41*$C$45 -> 0 | E45: 0 | F45: 0 | G45: 0 | H45: 0 | I45: 33.75 | J45: 45 | K45: 108 | L45: 120 | M45: 120 | N45: 120 | O45: 120 | Q45: =SUM(Izplatītāji[[#This Row],[1. mēnesis]:[12. mēnesis]]) -> 666.75
B46: Izplatītāju kopsumma EUR(000) | D46: =SUM(D42:D45) -> 900.00 | E46: =SUM(E42:E45) -> 900.00 | F46: 900.00 | G46: 900.00 | H46: 900.00 | I46: 933.75 | J46: 945.00 | K46: 1,008.00 | L46: 1,020.00 | M46: 1,020.00 | N46: 1,020.00 | O46: 1,020.00 | Q46: =SUM(Q42:Q45) -> 11,466.75
A47: Ievadiet detalizētu informāciju mazumtirgotājs tabulā, sākot no šūnas pa labi. Mazumtirgotāju kopsumma katram mēnesim tiek aprēķināta automātiski tabulas beigās, un gada Kopsumma tiek aprēķināta šūnā Q53. Sīkdiagramma tiek atjaunināta šūnā S53. Nākamais norādījums ir šūnā A54. | B47: Mazumtirgotāju vienumi | C47: Likme | D47: 1. mēnesis | E47: 2. mēnesis | F47: 3. mēnesis | G47: 4. mēnesis | H47: 5. mēnesis | I47: 6. mēnesis | J47: 7. mēnesis | K47: 8. mēnesis | L47: 9. mēnesis | M47: 10. mēnesis | N47: 11. mēnesis | O47: 12. mēnesis
B48: MAZUMTIRGOTĀJS (% NO PĀRDOŠANAS KOPSUMMAS) | D48: 0% | E48: 0% | F48: 25% | G48: 60% | H48: 67% | I48: 60% | J48: 60% | K48: 50% | L48: 30% | M48: 30% | N48: 30% | O48: 30%
B49: Komunikācija | D49: 50 | E49: 50 | F49: 50 | G49: 50 | H49: 50 | I49: 50 | J49: 50 | K49: 50 | L49: 50 | M49: 50 | N49: 50 | O49: 50
B50: Apmācība | D50: 250.00 | E50: 250.00 | F50: 250.00 | G50: 250.00 | H50: 250.00 | I50: 250.00 | J50: 250.00 | K50: 250.00 | L50: 250.00 | M50: 250.00 | N50: 250.00 | O50: 250.00 | Q50: =SUM('Kanāla mārketinga budžets'!$D49:$O49) -> 600.00
B51: Reklāmas | D51: 600.00 | E51: 600.00 | F51: 600.00 | G51: 600.00 | H51: 600.00 | I51: 600.00 | J51: 600.00 | K51: 600.00 | L51: 600.00 | M51: 600.00 | N51: 600.00 | O51: 600.00 | Q51: =SUM('Kanāla mārketinga budžets'!$D50:$O50) -> 3,000.00
B52: Komisijas/atlaides (% mazumtirdzniecības pārdošanas apjoma) | C52: 10.00% | D52: =D3*D48*$C$52 -> 0 | E52: 0 | F52: 12.5 | G52: 90 | H52: 80.4 | I52: 90 | J52: 90 | K52: 90 | L52: 60 | M52: 60 | N52: 60 | O52: 60 | Q52: =SUM('Kanāla mārketinga budžets'!$D52:$O52) -> 692.90
B53: Mazumtirgotāju kopsumma EUR(000) | D53: =SUM(D49:D52) -> 900.00 | E53: =SUM(E49:E52) -> 900.00 | F53: 912.50 | G53: 990.00 | H53: 980.40 | I53: 990.00 | J53: 990.00 | K53: 990.00 | L53: 960.00 | M53: 960.00 | N53: 960.00 | O53: 960.00 | Q53: =SUM(Q50:Q52) -> 4,292.90
A54: Ievadiet informāciju klientu iegūšana un saglabāšana tabulā, kas sākas šūnā pa labi. Klientu iegūšanas un saglabāšanas Kopsumma katram mēnesim tiek aprēķināta automātiski tabulas beigās, un gada kopsumma tiek aprēķināta šūnā Q59. Sīkdiagramma tiek atjaunināta šūnā S59. Nākamais norādījums ir šūnā A60. | B54: Klientu iegūšanas un saglabāšanas vienumi | C54: Likme | D54: 1. mēnesis | E54: 2. mēnesis | F54: 3. mēnesis | G54: 4. mēnesis | H54: 5. mēnesis | I54: 6. mēnesis | J54: 7. mēnesis | K54: 8. mēnesis | L54: 9. mēnesis | M54: 10. mēnesis | N54: 11. mēnesis | O54: 12. mēnesis
B55: KLIENTU IEGŪŠANA UN SAGLABĀŠANA
B56: Cilvēkresursi | D56: 50 | E56: 50 | F56: 50 | G56: 50 | H56: 50 | I56: 50 | J56: 50 | K56: 50 | L56: 50 | M56: 50 | N56: 50 | O56: 50 | Q56: =SUM('Kanāla mārketinga budžets'!$D56:$O56) -> 600.00
B57: Saziņa | D57: 250.00 | E57: 250.00 | F57: 250.00 | G57: 250.00 | H57: 250.00 | I57: 250.00 | J57: 250.00 | K57: 250.00 | L57: 250.00 | M57: 250.00 | N57: 250.00 | O57: 250.00 | Q57: =SUM('Kanāla mārketinga budžets'!$D57:$O57) -> 3,000.00
B58: Reklāmas/kuponi | D58: 600 | E58: 600 | F58: 600 | G58: 600 | H58: 600 | I58: 600 | J58: 600 | K58: 600 | L58: 600 | M58: 600 | N58: 600 | O58: 600 | Q58: =SUM('Kanāla mārketinga budžets'!$D58:$O58) -> 7,200.00
B59: Klientu iegūšanas un saglabāšanas kopsumma EUR(000) | D59: =SUM(D56:D58) -> 900.00 | E59: =SUM(E56:E58) -> 900.00 | F59: 900.00 | G59: 900.00 | H59: 900.00 | I59: 900.00 | J59: 900.00 | K59: 900.00 | L59: 900.00 | M59: 900.00 | N59: 900.00 | O59: 900.00 | Q59: =SUM(Q56:Q58) -> 10,800.00
A60: Tabulā Citi izdevumi, sākot ar šūnu pa labi, ievadiet detalizētu informāciju Citu izdevumu kopsumma katram mēnesim tiek aprēķināta automātiski tabulas beigās, un gada Kopsumma tiek aprēķināta šūnā Q65. Sīkdiagramma tiek atjaunināta šūnā S65. Nākamais norādījums ir šūnā A67. | B60: Citi izdevumu vienumi | C60: Likme | D60: 1. mēnesis | E60: 2. mēnesis | F60: 3. mēnesis | G60: 4. mēnesis | H60: 5. mēnesis | I60: 6. mēnesis | J60: 7. mēnesis | K60: 8. mēnesis | L60: 9. mēnesis | M60: 10. mēnesis | N60: 11. mēnesis | O60: 12. mēnesis
B61: CITI IZDEVUMI
B62: Ceļojums | D62: 50 | E62: 50 | F62: 50 | G62: 50 | H62: 50 | I62: 50 | J62: 50 | K62: 50 | L62: 50 | M62: 50 | N62: 50 | O62: 50 | Q62: =SUM('Kanāla mārketinga budžets'!$D62:$O62) -> 600.00
B63: Infrastruktūra (dators, tālrunis u.c.) | D63: 250.00 | E63: 250.00 | F63: 250.00 | G63: 250.00 | H63: 250.00 | I63: 250.00 | J63: 250.00 | K63: 250.00 | L63: 250.00 | M63: 250.00 | N63: 250.00 | O63: 250.00 | Q63: =SUM('Kanāla mārketinga budžets'!$D63:$O63) -> 3,000.00
B64: Kanāla atbalsts | D64: 600 | E64: 600 | F64: 600 | G64: 600 | H64: 600 | I64: 600 | J64: 600 | K64: 600 | L64: 600 | M64: 600 | N64: 600 | O64: 600 | Q64: =SUM('Kanāla mārketinga budžets'!$D64:$O64) -> 7,200.00
B65: Citu izdevumu kopsumma EUR(000) | D65: =SUM(D62:D64) -> 900.00 | E65: =SUM(E62:E64) -> 900.00 | F65: 900.00 | G65: 900.00 | H65: 900.00 | I65: 900.00 | J65: 900.00 | K65: 900.00 | L65: 900.00 | M65: 900.00 | N65: 900.00 | O65: 900.00 | Q65: =SUM(Q62:Q64) -> 10,800.00
A67: Kopējais mārketinga budžets tiek automātiski aprēķināts katram mēnesim šajā rindā, no šūnas D67 līdz O67, un gada kopsumma tiek aprēķināta šūnā Q67. Sīkdiagramma tiek atjaunināta šūnā S67. | B67: KOPĒJAIS MĀRKETINGA BUDŽETS | D67: =SUM(CitiIzdevumi[[#Totals],[1. mēnesis]],CAR[[#Totals],[1. mēnesis]],Mazumtirgotājs[[#Totals],[1. mēnesis]],Izplatītāji[[#Totals],[1. mēnesis]],AģentiunBrokeri[[#Totals],[1. mēnesis]],D31) -> 6,354.00 | E67: =SUM(CitiIzdevumi[[#Totals],[2. mēnesis]],CAR[[#Totals],[2. mēnesis]],Mazumtirgotājs[[#Totals],[2. mēnesis]],Izplatītāji[[#Totals],[2. mēnesis]],AģentiunBrokeri[[#Totals],[2. mēnesis]],E31) -> 5,785.85 | F67: =SUM(CitiIzdevumi[[#Totals],[3. mēnesis]],CAR[[#Totals],[3. mēnesis]],Mazumtirgotājs[[#Totals],[3. mēnesis]],Izplatītāji[[#Totals],[3. mēnesis]],AģentiunBrokeri[[#Totals],[3. mēnesis]],F31) -> 5,834.44 | G67: =SUM(CitiIzdevumi[[#Totals],[4. mēnesis]],CAR[[#Totals],[4. mēnesis]],Mazumtirgotājs[[#Totals],[4. mēnesis]],Izplatītāji[[#Totals],[4. mēnesis]],AģentiunBrokeri[[#Totals],[4. mēnesis]],G31) -> 5,902.05 | H67: =SUM(CitiIzdevumi[[#Totals],[5. mēnesis]],CAR[[#Totals],[5. mēnesis]],Mazumtirgotājs[[#Totals],[5. mēnesis]],Izplatītāji[[#Totals],[5. mēnesis]],AģentiunBrokeri[[#Totals],[5. mēnesis]],H31) -> 5,916.35 | I67: =SUM(CitiIzdevumi[[#Totals],[6. mēnesis]],CAR[[#Totals],[6. mēnesis]],Mazumtirgotājs[[#Totals],[6. mēnesis]],Izplatītāji[[#Totals],[6. mēnesis]],AģentiunBrokeri[[#Totals],[6. mēnesis]],I31) -> 5,935.69 | J67: =SUM(CitiIzdevumi[[#Totals],[7. mēnesis]],CAR[[#Totals],[7. mēnesis]],Mazumtirgotājs[[#Totals],[7. mēnesis]],Izplatītāji[[#Totals],[7. mēnesis]],AģentiunBrokeri[[#Totals],[7. mēnesis]],J31) -> 5,976.90 | K67: =SUM(CitiIzdevumi[[#Totals],[8. mēnesis]],CAR[[#Totals],[8. mēnesis]],Mazumtirgotājs[[#Totals],[8. mēnesis]],Izplatītāji[[#Totals],[8. mēnesis]],AģentiunBrokeri[[#Totals],[8. mēnesis]],K31) -> 6,015.84 | L67: =SUM(CitiIzdevumi[[#Totals],[9. mēnesis]],CAR[[#Totals],[9. mēnesis]],Mazumtirgotājs[[#Totals],[9. mēnesis]],Izplatītāji[[#Totals],[9. mēnesis]],AģentiunBrokeri[[#Totals],[9. mēnesis]],L31) -> 6,031.80 | M67: =SUM(CitiIzdevumi[[#Totals],[10. mēnesis]],CAR[[#Totals],[10. mēnesis]],Mazumtirgotājs[[#Totals],[10. mēnesis]],Izplatītāji[[#Totals],[10. mēnesis]],AģentiunBrokeri[[#Totals],[10. mēnesis]],M31) -> 6,001.80 | N67: =SUM(CitiIzdevumi[[#Totals],[11. mēnesis]],CAR[[#Totals],[11. mēnesis]],Mazumtirgotājs[[#Totals],[11. mēnesis]],Izplatītāji[[#Totals],[11. mēnesis]],AģentiunBrokeri[[#Totals],[11. mēnesis]],N31) -> 6,056.80 | O67: =SUM(CitiIzdevumi[[#Totals],[12. mēnesis]],CAR[[#Totals],[12. mēnesis]],Mazumtirgotājs[[#Totals],[12. mēnesis]],Izplatītāji[[#Totals],[12. mēnesis]],AģentiunBrokeri[[#Totals],[12. mēnesis]],O31) -> 6,001.80 | Q67: =SUM(D67:O67) -> 71,813.31
